Department Family,Entity,Date,Expense Type,Expense area,Supplier,Transaction Number,Amount in Sterling �s incl VAT ,Supplier VAT Registration number
NHS,Glos Hospitals NHS Foundation Trust,01/11/2022,Finished processed goods,Inventories,Bayer,000393-212,"49,272.62", 
NHS,Glos Hospitals NHS Foundation Trust,01/11/2022,Finished processed goods,Inventories,Bayer,000393-215,"49,272.62", 
NHS,Glos Hospitals NHS Foundation Trust,01/11/2022,Finished processed goods,Inventories,Roche Products Limited,000393-224,"74,284.61", 
NHS,Glos Hospitals NHS Foundation Trust,01/11/2022,Finished processed goods,Inventories,Roche Products Limited,000393-226,"79,363.20", 
NHS,Glos Hospitals NHS Foundation Trust,01/11/2022,Finished processed goods,Inventories,Alloga UK Limited,000393-376,"45,000.00", 
NHS,Glos Hospitals NHS Foundation Trust,01/11/2022,Finished processed goods,Inventories,Alloga UK Limited,000393-381,"27,120.00", 
NHS,Glos Hospitals NHS Foundation Trust,01/11/2022,Finished processed goods,Inventories,Qualasept Ltd t/a Bath ASU,000393-389,"37,044.67", 
NHS,Glos Hospitals NHS Foundation Trust,01/11/2022,Finished processed goods,Inventories,Bayer,000393-52,"50,185.08", 
NHS,Glos Hospitals NHS Foundation Trust,01/11/2022,Finished processed goods,Inventories,Bayer,000393-54,"50,185.08", 
NHS,Glos Hospitals NHS Foundation Trust,08/11/2022,Finished processed goods,Inventories,Bayer,000395-3,"50,185.08", 
NHS,Glos Hospitals NHS Foundation Trust,08/11/2022,Finished processed goods,Inventories,Aah Pharmaceuticals Limited,000398-549,"47,277.12", 
NHS,Glos Hospitals NHS Foundation Trust,08/11/2022,Finished processed goods,Inventories,Alliance Healthcare,000398-638,"67,459.80", 
NHS,Glos Hospitals NHS Foundation Trust,08/11/2022,Finished processed goods,Inventories,Alliance Healthcare,000398-661,"25,488.00", 
NHS,Glos Hospitals NHS Foundation Trust,15/11/2022,Finished processed goods,Inventories,Bayer,000401-19,"50,185.08", 
NHS,Glos Hospitals NHS Foundation Trust,15/11/2022,Finished processed goods,Inventories,Bayer,000401-20,"50,185.08", 
NHS,Glos Hospitals NHS Foundation Trust,15/11/2022,Finished processed goods,Inventories,Bayer,000401-21,"50,185.08", 
NHS,Glos Hospitals NHS Foundation Trust,15/11/2022,Finished processed goods,Inventories,Aah Pharmaceuticals Limited,000402-15,"36,711.74", 
NHS,Glos Hospitals NHS Foundation Trust,15/11/2022,Finished processed goods,Inventories,Aah Pharmaceuticals Limited,000402-28,"25,805.16", 
NHS,Glos Hospitals NHS Foundation Trust,15/11/2022,Finished processed goods,Inventories,Bayer,000403-339,"49,272.62", 
NHS,Glos Hospitals NHS Foundation Trust,15/11/2022,Finished processed goods,Inventories,Bayer,000403-341,"49,272.62", 
NHS,Glos Hospitals NHS Foundation Trust,15/11/2022,Finished processed goods,Inventories,Roche Products Limited,000403-346,"43,764.48", 
NHS,Glos Hospitals NHS Foundation Trust,15/11/2022,Finished processed goods,Inventories,Roche Products Limited,000403-349,"86,803.98", 
NHS,Glos Hospitals NHS Foundation Trust,15/11/2022,Finished processed goods,Inventories,Alloga UK Limited,000403-445,"45,000.00", 
NHS,Glos Hospitals NHS Foundation Trust,15/11/2022,Finished processed goods,Inventories,Alloga UK Limited,000403-448,"27,120.00", 
NHS,Glos Hospitals NHS Foundation Trust,15/11/2022,Finished processed goods,Inventories,Qualasept Ltd t/a Bath ASU,000403-471,"32,159.81", 
NHS,Glos Hospitals NHS Foundation Trust,15/11/2022,Finished processed goods,Inventories,Qualasept Ltd t/a Bath ASU,000403-475,"88,328.54", 
NHS,Glos Hospitals NHS Foundation Trust,15/11/2022,Finished processed goods,Inventories,Qualasept Ltd t/a Bath ASU,000403-477,"72,111.24", 
NHS,Glos Hospitals NHS Foundation Trust,15/11/2022,Finished processed goods,Inventories,Octapharma Limited,000404-310,"38,700.00", 
NHS,Glos Hospitals NHS Foundation Trust,15/11/2022,Finished processed goods,Inventories,Roche Products Limited,000404-315,"340,337.11", 
NHS,Glos Hospitals NHS Foundation Trust,15/11/2022,Finished processed goods,Inventories,CSL Behring UK Limited,000404-43,"46,771.20", 
NHS,Glos Hospitals NHS Foundation Trust,22/11/2022,Finished processed goods,Inventories,Bayer,000408-261,"49,272.62", 
NHS,Glos Hospitals NHS Foundation Trust,22/11/2022,Finished processed goods,Inventories,Bristol Myers Squibb Pharmaceuticals Limited,000408-262,"55,062.00", 
NHS,Glos Hospitals NHS Foundation Trust,22/11/2022,Finished processed goods,Inventories,Roche Products Limited,000408-270,"73,320.00", 
NHS,Glos Hospitals NHS Foundation Trust,22/11/2022,Finished processed goods,Inventories,Roche Products Limited,000408-272,"41,471.64", 
NHS,Glos Hospitals NHS Foundation Trust,22/11/2022,Finished processed goods,Inventories,Roche Products Limited,000408-273,"27,647.82", 
NHS,Glos Hospitals NHS Foundation Trust,22/11/2022,Finished processed goods,Inventories,Alloga UK Limited,000408-421,"27,120.00", 
NHS,Glos Hospitals NHS Foundation Trust,22/11/2022,Finished processed goods,Inventories,Alloga UK Limited,000408-425,"45,000.00", 
NHS,Glos Hospitals NHS Foundation Trust,22/11/2022,Finished processed goods,Inventories,Janssen Cilag Limited,000408-436,"83,462.40", 
NHS,Glos Hospitals NHS Foundation Trust,29/11/2022,Finished processed goods,Inventories,Roche Products Limited,000411-13,"109,200.00", 
NHS,Glos Hospitals NHS Foundation Trust,29/11/2022,Finished processed goods,Inventories,Bristol Myers Squibb Pharmaceuticals Limited,000413-192,"36,551.16", 
NHS,Glos Hospitals NHS Foundation Trust,29/11/2022,Finished processed goods,Inventories,Roche Products Limited,000413-194,"32,760.00", 
NHS,Glos Hospitals NHS Foundation Trust,29/11/2022,Finished processed goods,Inventories,Roche Products Limited,000413-195,"73,320.00", 
NHS,Glos Hospitals NHS Foundation Trust,29/11/2022,Finished processed goods,Inventories,Alloga UK Limited,000413-307,"27,120.00", 
NHS,Glos Hospitals NHS Foundation Trust,29/11/2022,Finished processed goods,Inventories,Alloga UK Limited,000413-308,"45,000.00", 
NHS,Glos Hospitals NHS Foundation Trust,29/11/2022,Finished processed goods,Inventories,Qualasept Ltd t/a Bath ASU,000413-325,"33,460.70", 
NHS,Glos Hospitals NHS Foundation Trust,29/11/2022,Finished processed goods,Inventories,Qualasept Ltd t/a Bath ASU,000413-327,"35,733.12", 
NHS,Glos Hospitals NHS Foundation Trust,29/11/2022,Finished processed goods,Inventories,Qualasept Ltd t/a Bath ASU,000413-328,"35,733.12", 
NHS,Glos Hospitals NHS Foundation Trust,29/11/2022,Finished processed goods,Inventories,Qualasept Ltd t/a Bath ASU,000413-333,"35,733.12", 
NHS,Glos Hospitals NHS Foundation Trust,29/11/2022,Finished processed goods,Inventories,Aah Pharmaceuticals Limited,000414-389,"94,554.24", 
NHS,Glos Hospitals NHS Foundation Trust,22/11/2022,External Consultancy Fees,Financial Management,KPMG LLP,926935,"31,158.00", 
NHS,Glos Hospitals NHS Foundation Trust,22/11/2022,Computer Software / License  Fees,Computing - CGH HQ,Softcat Ltd,931646,"33,598.80", 
NHS,Glos Hospitals NHS Foundation Trust,01/11/2022,External Contracts : Other,Clinical Coders,Monmouth Partners Limited,931981,"27,900.00", 
NHS,Glos Hospitals NHS Foundation Trust,01/11/2022,External Contracts : Other,Clinical Coders,Monmouth Partners Limited,931982,"27,900.00", 
NHS,Glos Hospitals NHS Foundation Trust,08/11/2022,Regular recharges,Scheduled Recharges from NPX,Gloucestershire Health and Care NHS FT Pr GCS,932639,"249,442.00", 
NHS,Glos Hospitals NHS Foundation Trust,15/11/2022,Laboratory Reagents,SCBU - GRH,Chrystal Consulting Limited,933826,"56,859.54", 
NHS,Glos Hospitals NHS Foundation Trust,08/11/2022,Medical & Surgical Equipment Maintenance Contracts,Radiography,Supply Chain Coordination Ltd - Maint. (201),933848,"54,726.84", 
NHS,Glos Hospitals NHS Foundation Trust,01/11/2022,Medical & Surgical Equipment Maintenance Contracts,ENT OPD,Supply Chain Coordination Ltd - Maint. (201),933849,"36,762.00", 
NHS,Glos Hospitals NHS Foundation Trust,15/11/2022,Consultant Secondment,Urology Specialty,HA95059 Wye Valley NHS Trust,933909,"155,586.00", 
NHS,Glos Hospitals NHS Foundation Trust,08/11/2022,Purchase Computers/Systems,Capital Project Control,XMA Limited,933935,"100,296.00", 
NHS,Glos Hospitals NHS Foundation Trust,08/11/2022,Medical & Surgical Equipment Maintenance Contracts,Radiography,Supply Chain Coordination Ltd - Maint. (201),933938,"34,817.82", 
NHS,Glos Hospitals NHS Foundation Trust,08/11/2022,External Contracts : Other,Radiography Consultants,Everlight Radiology,934016,"30,923.00", 
NHS,Glos Hospitals NHS Foundation Trust,22/11/2022,Patients Appliances : Repairs,Patient Appliances,Opcare Limited,934053,"45,010.28", 
NHS,Glos Hospitals NHS Foundation Trust,01/11/2022,Regular recharges,Scheduled Recharges from NPX,Gloucestershire Health and Care NHS FT Pr GCS,934058,"86,840.45", 
NHS,Glos Hospitals NHS Foundation Trust,01/11/2022,Regular recharges,Scheduled Recharges from NPX,Gloucestershire Health and Care NHS FT Pr GCS,934060,"213,467.06", 
NHS,Glos Hospitals NHS Foundation Trust,01/11/2022,Regular recharges,Scheduled Recharges from NPX,Gloucestershire Health and Care NHS FT Pr GCS,934061,"88,943.95", 
NHS,Glos Hospitals NHS Foundation Trust,01/11/2022,Regular recharges,Scheduled Recharges from NPX,Gloucestershire Health and Care NHS FT Pr GCS,934063,"243,851.22", 
NHS,Glos Hospitals NHS Foundation Trust,22/11/2022,Regular recharges,Scheduled Recharges from NPX,Gloucestershire Health and Care NHS FT Pr GCS,934064,"87,315.66", 
NHS,Glos Hospitals NHS Foundation Trust,15/11/2022,Computer Software / License  Fees,Smartcare,InterSystems,934069,"80,016.16", 
NHS,Glos Hospitals NHS Foundation Trust,01/11/2022,Commercial Sector,Theatre Admin GRH,Genmed.me Limited,934169,"1,568,296.55", 
NHS,Glos Hospitals NHS Foundation Trust,01/11/2022,Commercial Sector,Ortho Theatre - Main - GRH,Genmed.me Limited,934199,"-77,892.34", 
NHS,Glos Hospitals NHS Foundation Trust,01/11/2022,External Contracts : Other,Radiography Consultants,Everlight Radiology,934587,"82,574.00", 
NHS,Glos Hospitals NHS Foundation Trust,29/11/2022,Computer Software / License  Fees,Finance - Direct Reports,Telstra Health UK Limited,934597,"44,000.28", 
NHS,Glos Hospitals NHS Foundation Trust,29/11/2022,Computer Software / License  Fees,Finance - Direct Reports,Telstra Health UK Limited,934598,"-60,500.40", 
NHS,Glos Hospitals NHS Foundation Trust,29/11/2022,Computer Software / License  Fees,Finance - Direct Reports,Telstra Health UK Limited,934599,"60,500.40", 
NHS,Glos Hospitals NHS Foundation Trust,08/11/2022,Computer Software / License  Fees,IT Contracts Shared Service,Phoenix Software Ltd,934804,"70,908.00", 
NHS,Glos Hospitals NHS Foundation Trust,01/11/2022,NHS Logistics control,Payables - Manual,Supply Chain Coordination Ltd - Consumables,934981,"33,989.83", 
NHS,Glos Hospitals NHS Foundation Trust,28/11/2022,Computer Maintenance,IT Contracts Shared Service,Stanley Security Solutions,935168,"42,011.99", 
NHS,Glos Hospitals NHS Foundation Trust,28/11/2022,Computer Maintenance,IT Contracts Shared Service,Stanley Security Solutions,935169,"-42,011.99", 
NHS,Glos Hospitals NHS Foundation Trust,08/11/2022,Rates,Rates - GRH,Gloucester City Council,935177,"209,920.00", 
NHS,Glos Hospitals NHS Foundation Trust,08/11/2022,Rates,Rates - CGH,Cheltenham Borough Council,935182,"90,624.00", 
NHS,Glos Hospitals NHS Foundation Trust,01/11/2022,Regular recharges,Scheduled Recharges from NPX,Gloucestershire Health and Care NHS FT Pr GCS,935195,"213,834.34", 
NHS,Glos Hospitals NHS Foundation Trust,01/11/2022,Regular recharges,Scheduled Recharges from NPX,Gloucestershire Health and Care NHS FT Pr GCS,935197,"84,928.94", 
NHS,Glos Hospitals NHS Foundation Trust,01/11/2022,Regular recharges,Scheduled Recharges from NPX,Gloucestershire Health and Care NHS FT Pr GCS,935199,"197,777.18", 
NHS,Glos Hospitals NHS Foundation Trust,01/11/2022,Allocate,Payables - Manual,ID Medical Group Limited,935202,"30,552.00", 
NHS,Glos Hospitals NHS Foundation Trust,08/11/2022,Purchase Computers/Systems,Capital Project Control,XMA Limited,935210,"180,264.00", 
NHS,Glos Hospitals NHS Foundation Trust,01/11/2022,Purchase Computers/Systems,Capital Project Control,XMA Limited,935211,"40,924.80", 
NHS,Glos Hospitals NHS Foundation Trust,08/11/2022,Medical & Surgical Equipment : General,Theatre Admin GRH,CMR Surgical Limited,935221,"61,350.00", 
NHS,Glos Hospitals NHS Foundation Trust,01/11/2022,Medical & Surgical Equipment : Disposable,CAPD Renal,Baxter Healthcare Limited,935223,"32,641.50", 
NHS,Glos Hospitals NHS Foundation Trust,08/11/2022,Contractual Clinical Services,Renal Dialysis,B Braun Avitum UK Limited,935303,"130,545.00", 
NHS,Glos Hospitals NHS Foundation Trust,08/11/2022,Contractual Clinical Services,Renal Dialysis,B Braun Avitum UK Limited,935304,"178,295.46", 
NHS,Glos Hospitals NHS Foundation Trust,15/11/2022,Consultant Secondment,Urology Specialty,HA95059 Wye Valley NHS Trust,935477,"-155,586.00", 
NHS,Glos Hospitals NHS Foundation Trust,08/11/2022,Purchase Computers/Systems,Capital Project Control,XMA Limited,935512,"272,250.00", 
NHS,Glos Hospitals NHS Foundation Trust,08/11/2022,Prescribing Control,Payables - Manual,HA79125 NHSBSA,935590,"117,694.25", 
NHS,Glos Hospitals NHS Foundation Trust,08/11/2022,Engineering - External Contracts,Capital Project Control,European Electronique Limited,935653,"45,055.06", 
NHS,Glos Hospitals NHS Foundation Trust,04/11/2022,Barclay Card,Payables - Manual,Barclaycard Commercial,935821,"101,651.86", 
NHS,Glos Hospitals NHS Foundation Trust,08/11/2022,Advertising & Staff Recruitment,Overseas Recruitment,ID Medical Group Limited,935863,"45,600.00", 
NHS,Glos Hospitals NHS Foundation Trust,08/11/2022,Advertising & Staff Recruitment,Overseas Recruitment,ID Medical Group Limited,935864,"35,245.90", 
NHS,Glos Hospitals NHS Foundation Trust,08/11/2022,Colour Connection,Payables - Manual,Colour Connection,935866,"40,218.50", 
NHS,Glos Hospitals NHS Foundation Trust,15/11/2022,Contract : Other External,GHP Contract,Gloucester Healthcare Partnership Limited,935878,"645,707.41", 
NHS,Glos Hospitals NHS Foundation Trust,15/11/2022,Contract : Other External,GHP Contract,Gloucester Healthcare Partnership Limited,935879,"27,774.06", 
NHS,Glos Hospitals NHS Foundation Trust,08/11/2022,Computer Maintenance,IT Contracts Shared Service,Softcat Ltd,936184,"67,543.68", 
NHS,Glos Hospitals NHS Foundation Trust,08/11/2022,Contractual Clinical Services,Cardiology Laboratory,AGITO Medical A/S,936291,"30,580.00", 
NHS,Glos Hospitals NHS Foundation Trust,08/11/2022,Commercial Sector,Theatre Admin GRH,Genmed.me Limited,936300,"1,776,123.86", 
NHS,Glos Hospitals NHS Foundation Trust,08/11/2022,Patients Appliances : Repairs,Patient Appliances,Opcare Limited,936384,"29,540.39", 
NHS,Glos Hospitals NHS Foundation Trust,15/11/2022,Computer Software / License  Fees,Smartcare,InterSystems,936582,"480,096.94", 
NHS,Glos Hospitals NHS Foundation Trust,08/11/2022,Patients Appliances : Repairs,Patient Appliances,Opcare Limited,936602,"89,984.23", 
NHS,Glos Hospitals NHS Foundation Trust,15/11/2022,External Contracts : Other,Smartcare,InterSystems,936644,"-80,016.16", 
NHS,Glos Hospitals NHS Foundation Trust,15/11/2022,External Contracts : Other,Smartcare,InterSystems,936646,"-80,016.16", 
NHS,Glos Hospitals NHS Foundation Trust,15/11/2022,External Contracts : Other,Smartcare,InterSystems,936648,"-80,161.36", 
NHS,Glos Hospitals NHS Foundation Trust,15/11/2022,External Contracts : Other,Smartcare,InterSystems,936652,"-80,016.16", 
NHS,Glos Hospitals NHS Foundation Trust,15/11/2022,External Contracts : Other,Smartcare,InterSystems,936654,"-80,016.16", 
NHS,Glos Hospitals NHS Foundation Trust,08/11/2022,Building - External Contracts,Capital Project Control,Kier Infrastructure & Overseas Limited,936734,"1,748,496.11", 
NHS,Glos Hospitals NHS Foundation Trust,08/11/2022,NHS Logistics control,Payables - Manual,Supply Chain Coordination Ltd - Consumables,936735,"59,927.86", 
NHS,Glos Hospitals NHS Foundation Trust,15/11/2022,Contractual Clinical Services,Cardiology Laboratory,AGITO Medical A/S,936785,"29,190.00", 
NHS,Glos Hospitals NHS Foundation Trust,15/11/2022,Laboratory Reagents,Microbiology - GRH,Chrystal Consulting Limited,936902,"54,201.26", 
NHS,Glos Hospitals NHS Foundation Trust,15/11/2022,Laboratory Reagents,SCBU - GRH,Chrystal Consulting Limited,936938,"59,748.61", 
NHS,Glos Hospitals NHS Foundation Trust,22/11/2022,Patients Appliances : Repairs,Patient Appliances,Opcare Limited,937065,"32,570.04", 
NHS,Glos Hospitals NHS Foundation Trust,15/11/2022,Implant Procedures,Cardiology Laboratory,Medtronic Limited,937092,"-38,160.00", 
NHS,Glos Hospitals NHS Foundation Trust,15/11/2022,Computer Software / License  Fees,Smartcare,InterSystems,937103,"80,161.36", 
NHS,Glos Hospitals NHS Foundation Trust,15/11/2022,Implant Procedures,Cardiology Laboratory,Medtronic Limited,937153,"-27,360.00", 
NHS,Glos Hospitals NHS Foundation Trust,18/11/2022,Contract : Other External,UC & Dividend,NHS Gloucestershire Managed Services,937155,"5,841,775.56", 
NHS,Glos Hospitals NHS Foundation Trust,15/11/2022,Drugs - Passthrough Expenditure,Hereford Clinic Rental,HA95059 Wye Valley NHS Trust,937276,"481,755.42", 
NHS,Glos Hospitals NHS Foundation Trust,15/11/2022,Drugs - Passthrough Expenditure,Hereford Clinic Rental,HA95059 Wye Valley NHS Trust,937277,"462,278.00", 
NHS,Glos Hospitals NHS Foundation Trust,15/11/2022,Drugs - Passthrough Expenditure,Hereford Clinic Rental,HA95059 Wye Valley NHS Trust,937279,"485,664.65", 
NHS,Glos Hospitals NHS Foundation Trust,15/11/2022,Allocate,Payables - Manual,ID Medical Group Limited,937299,"38,647.20", 
NHS,Glos Hospitals NHS Foundation Trust,29/11/2022,Laboratory Reagents,SCBU - GRH,Chrystal Consulting Limited,937313,"69,143.72", 
NHS,Glos Hospitals NHS Foundation Trust,15/11/2022,Contract : Other External,UC & Dividend,NHS Gloucestershire Managed Services,937378,"1,841,775.56", 
NHS,Glos Hospitals NHS Foundation Trust,11/11/2022,Contract : Other External,UC & Dividend,NHS Gloucestershire Managed Services,937379,"4,000,000.00", 
NHS,Glos Hospitals NHS Foundation Trust,11/11/2022,Contract : Other External,UC & Dividend,NHS Gloucestershire Managed Services,937388,"5,841,775.56", 
NHS,Glos Hospitals NHS Foundation Trust,11/11/2022,Contract : Other External,UC & Dividend,NHS Gloucestershire Managed Services,937389,"-5,841,775.56", 
NHS,Glos Hospitals NHS Foundation Trust,11/11/2022,Contract : Other External,UC & Dividend,NHS Gloucestershire Managed Services,937569,"-5,841,775.56", 
NHS,Glos Hospitals NHS Foundation Trust,11/11/2022,Contract : Other External,UC & Dividend,NHS Gloucestershire Managed Services,937570,"5,841,775.56", 
NHS,Glos Hospitals NHS Foundation Trust,15/11/2022,Computer Network Costs,Network Infrastructure,BT Global Services,937579,"43,535.33", 
NHS,Glos Hospitals NHS Foundation Trust,11/11/2022,Clinical Negligence,Trustwide Finance,NHS Resolution,937907,"1,937,434.70", 
NHS,Glos Hospitals NHS Foundation Trust,15/11/2022,Medical & Surgical Equipment Maintenance Contracts,Radiography,Supply Chain Coordination Ltd - Maint. (201),938110,"94,791.62", 
NHS,Glos Hospitals NHS Foundation Trust,15/11/2022,Purchase Computers/Systems,Capital Project Control,Insight Direct (UK) Limited,938252,"61,524.00", 
NHS,Glos Hospitals NHS Foundation Trust,22/11/2022,NHS Logistics control,Payables - Manual,Supply Chain Coordination Ltd - Consumables,938292,"29,338.42", 
NHS,Glos Hospitals NHS Foundation Trust,22/11/2022,External Consultancy Fees,Trustwide NR,KPMG LLP,938296,"108,000.00", 
NHS,Glos Hospitals NHS Foundation Trust,22/11/2022,Minor Works,GHP Contract,Apleona PPP Limited,938579,"30,589.55", 
NHS,Glos Hospitals NHS Foundation Trust,22/11/2022,Laboratory Bottles & Containers,Pathology General - Trustwide,BOXXE Limited,938587,"34,194.00", 
NHS,Glos Hospitals NHS Foundation Trust,22/11/2022,Contractual Clinical Services,Renal Dialysis,B Braun Avitum UK Limited,938663,"190,729.84", 
NHS,Glos Hospitals NHS Foundation Trust,22/11/2022,Fresh Blood & Plasma Products,Blood Products,HA73961 NHS Blood & Transplant,938831,"45,402.19", 
NHS,Glos Hospitals NHS Foundation Trust,22/11/2022,NHS Logistics control,Payables - Manual,Supply Chain Coordination Ltd - Consumables,938982,"75,775.26", 
NHS,Glos Hospitals NHS Foundation Trust,22/11/2022,NHS Logistics control,Payables - Manual,Supply Chain Coordination Ltd - Consumables,938983,"30,766.20", 
NHS,Glos Hospitals NHS Foundation Trust,22/11/2022,Fresh Blood & Plasma Products,Blood Products,HA73961 NHS Blood & Transplant,939000,"99,429.08", 
NHS,Glos Hospitals NHS Foundation Trust,29/11/2022,Computer Software / License  Fees,Finance - Direct Reports,HA96850 Univer Hosp B'Ham NHSFT/RRPPS,939004,"45,000.00", 
NHS,Glos Hospitals NHS Foundation Trust,22/11/2022,External Contracts : Other,Radiology CDC,Cobalt Health,939099,"68,930.00", 
NHS,Glos Hospitals NHS Foundation Trust,22/11/2022,NHS Logistics control,Payables - Manual,Supply Chain Coordination Ltd - Consumables,939167,"299,321.94", 
NHS,Glos Hospitals NHS Foundation Trust,22/11/2022,Regular recharges,Scheduled Recharges from NPX,Gloucestershire Health and Care NHS FT Pr GCS,939168,"95,996.32", 
NHS,Glos Hospitals NHS Foundation Trust,22/11/2022,Regular recharges,Scheduled Recharges from NPX,Gloucestershire Health and Care NHS FT Pr GCS,939170,"211,051.36", 
NHS,Glos Hospitals NHS Foundation Trust,22/11/2022,Regular recharges,Scheduled Recharges from NPX,Gloucestershire Health and Care NHS FT Pr GCS,939171,"85,888.40", 
NHS,Glos Hospitals NHS Foundation Trust,22/11/2022,Regular recharges,Scheduled Recharges from NPX,Gloucestershire Health and Care NHS FT Pr GCS,939173,"158,295.26", 
NHS,Glos Hospitals NHS Foundation Trust,22/11/2022,Regular recharges,Scheduled Recharges from NPX,Gloucestershire Health and Care NHS FT Pr GCS,939174,"274,352.00", 
NHS,Glos Hospitals NHS Foundation Trust,22/11/2022,Medical & Surgical Equip. : Finance & Op. Leases,Leases,Siemens Financial Services Limited,939714,"60,294.27", 
NHS,Glos Hospitals NHS Foundation Trust,22/11/2022,Regular recharges,Scheduled Recharges from NPX,Gloucestershire Health and Care NHS FT Pr GCS,939794,"80,269.00", 
NHS,Glos Hospitals NHS Foundation Trust,22/11/2022,Regular recharges,Scheduled Recharges from NPX,Gloucestershire Health and Care NHS FT Pr GCS,939795,"274,352.00", 
NHS,Glos Hospitals NHS Foundation Trust,22/11/2022,Regular recharges,Scheduled Recharges from NPX,Gloucestershire Health and Care NHS FT Pr GCS,939796,"80,269.00", 
NHS,Glos Hospitals NHS Foundation Trust,22/11/2022,Regular recharges,Scheduled Recharges from NPX,Gloucestershire Health and Care NHS FT Pr GCS,939797,"280,937.00", 
NHS,Glos Hospitals NHS Foundation Trust,22/11/2022,Regular recharges,Scheduled Recharges from NPX,Gloucestershire Health and Care NHS FT Pr GCS,939798,"82,196.00", 
NHS,Glos Hospitals NHS Foundation Trust,22/11/2022,Regular recharges,Scheduled Recharges from NPX,Gloucestershire Health and Care NHS FT Pr GCS,939799,"280,937.00", 
NHS,Glos Hospitals NHS Foundation Trust,22/11/2022,Regular recharges,Scheduled Recharges from NPX,Gloucestershire Health and Care NHS FT Pr GCS,939800,"82,196.00", 
NHS,Glos Hospitals NHS Foundation Trust,22/11/2022,Regular recharges,Scheduled Recharges from NPX,Gloucestershire Health and Care NHS FT Pr GCS,939801,"280,937.00", 
NHS,Glos Hospitals NHS Foundation Trust,22/11/2022,Regular recharges,Scheduled Recharges from NPX,Gloucestershire Health and Care NHS FT Pr GCS,939802,"82,196.00", 
NHS,Glos Hospitals NHS Foundation Trust,22/11/2022,Regular recharges,Scheduled Recharges from NPX,Gloucestershire Health and Care NHS FT Pr GCS,939803,"280,937.00", 
NHS,Glos Hospitals NHS Foundation Trust,22/11/2022,Regular recharges,Scheduled Recharges from NPX,Gloucestershire Health and Care NHS FT Pr GCS,939804,"82,196.00", 
NHS,Glos Hospitals NHS Foundation Trust,22/11/2022,Regular recharges,Scheduled Recharges from NPX,Gloucestershire Health and Care NHS FT Pr GCS,939806,"83,593.14", 
NHS,Glos Hospitals NHS Foundation Trust,22/11/2022,Allocate,Payables - Manual,ID Medical Group Limited,940324,"54,307.20", 
NHS,Glos Hospitals NHS Foundation Trust,22/11/2022,Other Transport Costs,Patient Transport Services GHX,E-Zec Medical Transport Services Ltd,940349,"30,576.46", 
NHS,Glos Hospitals NHS Foundation Trust,22/11/2022,Computer Software / License  Fees,Smartcare,InterSystems,940355,"80,016.16", 
NHS,Glos Hospitals NHS Foundation Trust,29/11/2022,External Contracts : Other,Radiography,Cobalt Health,940502,"38,616.66", 
NHS,Glos Hospitals NHS Foundation Trust,29/11/2022,External Contracts : Other,Radiology CDC,Cobalt Health,940503,"48,657.00", 
NHS,Glos Hospitals NHS Foundation Trust,29/11/2022,External Contracts : Other,Radiography Consultants,Everlight Radiology,940551,"90,475.75", 
NHS,Glos Hospitals NHS Foundation Trust,29/11/2022,External Contracts : Other,Radiography Consultants,Everlight Radiology,940552,"33,787.75", 
NHS,Glos Hospitals NHS Foundation Trust,29/11/2022,Computer Maintenance,Clinical Systems,DH OpCo Limited,940629,"56,256.49", 
NHS,Glos Hospitals NHS Foundation Trust,29/11/2022,Sales Of Goods And Services,Pharmacy - GRH,Alloga UK Limited,940652,"-122,400.00", 
NHS,Glos Hospitals NHS Foundation Trust,29/11/2022,Laboratory Reagents,Microbiology - GRH,Chrystal Consulting Limited,941151,"27,839.18", 
NHS,Glos Hospitals NHS Foundation Trust,29/11/2022,Laboratory Reagents,Microbiology - GRH,Chrystal Consulting Limited,941484,"58,114.31", 
